Cogmind - Beta 13 @@@ ROGUE MODE // 2024.06.02 @ 21:51:07 Player: Kat Result: Destroyed by as-34496 with Assembled Rifle Performance ------------- Evolutions (1) 500 Regions Visited (4) 800 Robots Destroyed (54) 270 Value Destroyed (1040) 1040 Prototype IDs (5) 100 Alien Tech Used (0) 0 Bonus (30) 30 TOTAL SCORE: 2740 Bonus ------- High Alert Combat Kills 30 Cogmind --------- Core Integrity 0/400 Matter 300/300 Energy 98/100 System Corruption 5% Temperature Cool (0) Movement Core (50) Location -9/Mines Parts ------- > --- POWER (1) -------- (None) > --- PROPULSION (2) --- (None) > --- UTILITY (4) ------ (None) > --- WEAPON (2) ------- (None) > --- INVENTORY (5) ---- Reinforced Ion Engine Faulty Experimental Sensor Array Advanced Beam Rifle Advanced Beam Rifle Advanced Beam Rifle Peak State ------------ > --- POWER ------------ Reinforced Ion Engine > --- PROPULSION ------- Wheel > --- UTILITY ---------- Improved Heat Sink Small Storage Unit Experimental Sensor Array Signal Interpreter > --- WEAPON ----------- Improved Medium Laser Rocket Launcher > --- INVENTORY -------- Ion Engine Power Shielding Improved Medium Laser Improved Medium Laser Advanced Beam Rifle Advanced Beam Rifle Advanced Beam Rifle Grenade Launcher [Rating: 24] Favorites ----------- Power Reinforced Ion Engine Engine Reinforced Ion Engine Power Core Light Nuclear Core Propulsion Aluminum Leg Leg Aluminum Leg Wheel Wheel Utility Small Storage Unit Device Improved Heat Sink Storage Small Storage Unit Processor Signal Interpreter Protection Power Shielding Weapon Improved Medium Laser Energy Gun Improved Medium Laser Energy Cannon Beam Cannon Ballistic Gun Assault Rifle Ballistic Cannon Improved Light Cannon Launcher Rocket Launcher Build | -11 -10 -10 -9 -9 ------- Run | Yrd Mat Min Mat Min Slots Evolved 2 | . . . 2 . Power . | . . . . . Propulsion . | . . . . . Utility 2 | . . . 2 . Weapon . | . . . . . Parts Attached 59 | 7 7 9 27 9 Power 4 | 1 . 1 1 1 Engine 3 | 1 . . 1 1 Core 1 | . . 1 . . Reactor . | . . . . . Propulsion 14 | 2 1 3 6 2 Treads . | . . . . . Leg 12 | 2 1 3 6 . Wheel 2 | . . . . 2 Hover . | . . . . . Flight . | . . . . . Utility 13 | 2 2 1 6 2 Device 7 | 1 2 1 2 1 Storage 3 | 1 . . 2 . Processor 1 | . . . 1 . Hackware . | . . . . . Protection 2 | . . . 1 1 Artifact . | . . . . . Weapon 28 | 2 4 4 14 4 Energy Gun 16 | 1 3 1 9 2 Energy Cannon 2 | . . . 2 . Ballistic Gun 4 | 1 1 1 1 . Ballistic Cannon 3 | . . . 2 1 Launcher 3 | . . 2 . 1 Special Weapon . | . . . . . Impact Weapon . | . . . . . Slashing Weapon . | . . . . . Piercing Weapon . | . . . . . Special Melee Weapon . | . . . . . Unidentified Prototypes 5 | . . . 4 1 Parts Lost 11 | . . . 4 7 Power 1 | . . . . 1 Propulsion 5 | . . . 2 3 Utility 2 | . . . 1 1 Weapon 3 | . . . 1 2 Highest Loss Streak 6 | . . . 2 6 To Critical Strikes . | . . . . . Average Slot Usage (%) 96 | . 100 100 95 90 Engine 10 | . 14 3 8 11 Core 1 | . . 10 2 . Leg 22 | . 28 28 21 2 Wheel 1 | . . . . 11 Device 13 | . 14 14 14 10 Storage 12 | . 14 14 10 11 Processor 6 | . . . 11 11 Protection 3 | . . . 4 11 Energy Gun 15 | . 14 14 17 14 Ballistic Gun 5 | . 13 10 . . Ballistic Cannon 1 | . . . 4 . Launcher 1 | . . 3 . 7 Naked Turns . | . . . . . Heaviest Build 25 | 15 15 17 24 25 Greatest Support 20 | 20 20 20 20 20 Greatest Overweight (x) 7 | 2 . . 2 7 Average Overweight (x) . | . . . . 1 Largest Inventory Capacity 8 | 8 8 8 8 8 Average Capacity 7 | 7 8 8 7 8 Most Carried 8 | 1 8 8 8 8 Average Carried 5 | . 2 7 7 7 Final Capacity 8 | 8 8 8 8 5 Final Carried 8 | 1 8 8 6 5 Class Distribution -------------------- 73% | Mutant 26% | Scavenger-Mutant Dominant Class ---------------- Mutant | -10/Materials Scavenger-Mutant | -10/Mines Mutant | -9/Materials Mutant | -9/Mines Resources | -11 -10 -10 -9 -9 ----------- Run | Yrd Mat Min Mat Min Matter Collected 1103 | 291 93 91 527 101 Remotely . | . . . . . Salvage Created 1809 | 144 234 134 1096 201 Parts 100 | 7 19 10 52 12 Haulers Intercepted 2 | . . . 2 . Recyclers Shooed 6 | 1 . . 4 1 Parts Field Recycled . | . . . . . Retrieved Matter . | . . . . . Parts Self-Destructed . | . . . . . Prevented . | . . . . . Kills | -11 -10 -10 -9 -9 ------- Run | Yrd Mat Min Mat Min Combat Hostiles Destroyed 36 | . 6 5 21 4 Guns 27 | . 5 5 13 4 Cannons 8 | . . . 8 . Classes Destroyed 8 | 2 3 . 2 1 Worker 2 | . . . . 2 Tunneler 3 | 2 . . . 1 Hauler 2 | . . . 2 . Recycler 7 | 1 . . 5 1 Watcher 4 | . 2 . 2 . Swarmer 18 | . 3 3 8 4 Grunt 12 | . 3 2 7 . Sentry 6 | . . . 6 . Best Kill Streak 7 | 3 3 3 7 4 Combat Bots Only 4 | . 3 3 3 4 Max Kills in Single Turn 1 | 1 1 1 1 1 Gunslinging . | . . . . . Exploded . | . . . . . Melee . | . . . . . Uniques/NPCs Destroyed . | . . . . . Combat | -11 -10 -10 -9 -9 -------- Run | Yrd Mat Min Mat Min Hostile Shots Fired 241 | . 27 23 150 41 Missed 65 | . 9 5 43 8 Damage Taken 2200 | . 195 158 1218 629 Core 467 | . 56 9 241 161 Absorbed by Shields . | . . . . . Redirected to Shielding 43 | . . . 12 31 Regen/Repaired (Parts) 79 | . 14 . 65 . Core Remaining (%) 87 | 100 . 74 . . Volleys Fired 171 | 7 25 14 105 20 Largest 2 | 2 2 2 2 2 Hottest 122 | 70 80 85 122 112 Shots Fired 313 | 14 48 28 192 31 Gun 261 | 14 48 28 140 31 Cannon 52 | . . . 52 . Launcher . | . . . . . Special . | . . . . . Kinetic 90 | 7 17 14 52 . Thermal 207 | 7 15 14 140 31 Explosive . | . . . . . Electromagnetic 16 | . 16 . . . Robot Hit Streak 15 | 6 12 7 15 10 Robot Miss Streak 5 | 1 5 3 5 3 Penetration Max . | . . . . . Secondary Targets . | . . . . . Shots Hit Robots 170 | 9 28 17 96 20 Core Hits 64 | 4 11 8 33 8 Critical Kills . | . . . . . Critical Parts Destroyed . | . . . . . Critical Strikes 12 | . 1 1 7 3 Burn 11 | . 1 1 6 3 Blast 1 | . . . 1 . Melee Attacks . | . . . . . Impact . | . . . . . Slashing . | . . . . . Piercing . | . . . . . Sneak Attacks . | . . . . . Combat Hostiles . | . . . . . Follow-up Attacks . | . . . . . Damage Inflicted 2999 | 124 353 222 1941 359 Guns 2207 | 124 353 222 1149 359 Cannons 792 | . . . 792 . Explosions . | . . . . . Melee . | . . . . . Ramming . | . . . . . Kinetic 1071 | 61 95 123 792 . Thermal 1757 | 63 87 99 1149 359 Explosive . | . . . . . Electromagnetic 171 | . 171 . . . Impact . | . . . . . Slashing . | . . . . . Piercing . | . . . . . Highest Corruption 5 | . . . . 5 Average Corruption 5 | . . . . 5 Corruption Purged . | . . . . . Corruption Blocked . | . . . . . Effects 7 | . . . . 7 Message Errors 3 | . . . . 3 Matter Fused 2 | . . . . 2 Energy Discharges 1 | . . . . 1 Parts Fused 1 | . . . . 1 Overload Shots . | . . . . . Overflow Damage 7 | . . . 7 . Projectiles 7 | . . . 7 . Explosions . | . . . . . Melee . | . . . . . Knockbacks 16 | . . . 16 . Impact . | . . . . . Kinetic 13 | . . . 13 . Secondary 3 | . . . 3 . Self-Inflicted Damage . | . . . . . Shots . | . . . . . Rammed . | . . . . . Targets Rammed . | . . . . . Kicked . | . . . . . Crushed . | . . . . . Highest Temperature 387 | 45 36 300 387 84 Average Temperature 65 | 19 10 123 72 32 Received Heat Transfer 465 | . 48 24 393 . Effects 3 | . . . 3 . Shutdowns 1 | . . . 1 . Energy Bleed 1 | . . . 1 . Damage (minor) 1 | . . . 1 . Siege Activations . | . . . . . Robots Corrupted 1 | . 1 . . . Combat Hostiles 1 | . 1 . . . Parts Fried 1 | . 1 . . . Impact Corruptions 1 | . . . 1 . Robots Melted . | . . . . . Combat Hostiles . | . . . . . Parts Melted 14 | . . . 11 3 Heat Transferred 4551 | 185 333 333 2701 999 Parts Sabotaged . | . . . . . Parts Stolen . | . . . . . Parts Stripped . | . . . . . Power Chain Reactions . | . . . . . Alert | -11 -10 -10 -9 -9 ------- Run | Yrd Mat Min Mat Min Peak Influence 487 | 15 232 166 487 263 Initial 148 | . 9 46 64 148 Average 160 | 3 35 120 250 222 Maximum Alert Level 2 | . 1 . 2 1 Low Security (%) 63 | 100 95 100 42 28 Level 1 28 | . 4 . 40 71 Level 2 7 | . . . 17 . Level 3 . | . . . . . Level 4 . | . . . . . Level 5 . | . . . . . High Security . | . . . . . Max Security . | . . . . . Squads Dispatched 9 | . 4 . 5 . Investigation 3 | . 2 . 1 . Extermination . | . . . . . Reinforcement 5 | . 2 . 3 . Assault 1 | . . . 1 . Garrison . | . . . . . Intercept . | . . . . . Searches Triggered . | . . . . . Construction Impeded 1 | . . . 1 . Haulers Reinforced . | . . . . . Active Scanning Responses . | . . . . . Cargo Convoy Interrupts . | . . . . . Stealth | -11 -10 -10 -9 -9 --------- Run | Yrd Mat Min Mat Min Distress Signals 2 | . . . 2 . Communications Jammed . | . . . . . Distress Signals . | . . . . . Times Spotted 82 | . 15 5 40 22 Peak Tracking Total 10 | . 4 3 7 10 Tactical Retreats 4 | . 1 . 3 . Traps | -11 -10 -10 -9 -9 ------- Run | Yrd Mat Min Mat Min Traps Triggered 2 | . 2 . . . Indirectly . | . . . . . Trap Hack Attempts . | . . . . . Triggered . | . . . . . Disarmed 1 | . . . 1 . Reprogrammed . | . . . . . Reused . | . . . . . Traps Extracted . | . . . . . Installed . | . . . . . Triggered . | . . . . . Machines | -11 -10 -10 -9 -9 ---------- Run | Yrd Mat Min Mat Min Machines Disabled 1 | . . . . 1 Max in Single Turn 1 | . . . . 1 Machines Repaired . | . . . . . Machines Dismantled . | . . . . . Machines Sabotaged . | . . . . . Overloaded Fab Kills . | . . . . . Hacking | -11 -10 -10 -9 -9 --------- Run | Yrd Mat Min Mat Min Machines Accessed 11 | . 5 . 6 . Terminals 8 | . 3 . 5 . Fabricators . | . . . . . Repair Stations 2 | . 1 . 1 . Recycling Units 1 | . 1 . . . Scanalyzers . | . . . . . Garrison Access . | . . . . . Total Hacks 33 | . 15 . 18 . Successful 14 | . 6 . 8 . Failed 19 | . 9 . 10 . Catastrophic 7 | . 6 . 1 . Database Lockouts . | . . . . . Manual 20 | . 9 . 11 . Terminals 24 | . 9 . 15 . Fabricators . | . . . . . Repair Stations 5 | . 2 . 3 . Recycling Units 4 | . 4 . . . Scanalyzers . | . . . . . Garrison Access . | . . . . . Terminal Hacks 8 | . 2 . 6 . Locate Traps 2 | . . . 2 . Disarm Traps 1 | . . . 1 . Registered Components 3 | . 2 . 1 . Zone Layout 2 | . . . 2 . Fabricator Hacks . | . . . . . Repair Station Hacks 4 | . 2 . 2 . Scan Component 2 | . 1 . 1 . Repair 2 | . 1 . 1 . Recycling Unit Hacks 2 | . 2 . . . Report Inventory 1 | . 1 . . . Retrieve Components 1 | . 1 . . . Scanalyzer . | . . . . . Garrison Access Hacks . | . . . . . Unauthorized Hacks . | . . . . . Terminals . | . . . . . Fabricators . | . . . . . Repair Stations . | . . . . . Recycling Units . | . . . . . Scanalyzers . | . . . . . Garrison Access . | . . . . . Data Cores Recovered . | . . . . . Used . | . . . . . Hacking Detections 10 | . 4 . 6 . Full Trace Events 4 | . 3 . 1 . Feedback Events . | . . . . . Feedback Blocked . | . . . . . Robot Schematics Acquired . | . . . . . Robots Built . | . . . . . Authchips . | . . . . . Time . | . . . . . Total Robot Build Rating . | . . . . . Part Schematics Acquired . | . . . . . Parts Built . | . . . . . Authchips . | . . . . . Time . | . . . . . Total Part Build Rating . | . . . . . Parts Repaired 2 | . 1 . 1 . Time 52 | . 26 . 26 . Parts Recycled . | . . . . . Recycled Matter . | . . . . . Retrieved Matter . | . . . . . Retrieved Components 1 | . 1 . . . Parts Scanalyzed . | . . . . . Part Schematics Acquired . | . . . . . Parts Damaged . | . . . . . Bothacking | -11 -10 -10 -9 -9 ------------ Run | Yrd Mat Min Mat Min Used RIF Installer . | . . . . . Robots Hacked . | . . . . . Non-combat . | . . . . . Combat . | . . . . . Robot Hacks Applied . | . . . . . Relay Couplers Released . | . . . . . Fabnet Peak Effective % . | . . . . . Robots Rewired . | . . . . . Allies Hacked . | . . . . . Hacks Repelled . | . . . . . Allies | -11 -10 -10 -9 -9 -------- Run | Yrd Mat Min Mat Min Total Allies . | . . . . . Largest Group . | . . . . . Highest-Rated Group . | . . . . . Highest-Rated Ally . | . . . . . Total Orders . | . . . . . Ally Attacks . | . . . . . Total Damage . | . . . . . Kills . | . . . . . Allies Corrupted . | . . . . . Allies Melted . | . . . . . Intel | -11 -10 -10 -9 -9 ------- Run | Yrd Mat Min Mat Min Robot Analysis Total . | . . . . . Derelict Logs Recovered 2 | . . . . 2 Drone Launches . | . . . . . Drone Recoveries . | . . . . . Exploration | -11 -10 -10 -9 -9 ------------- Run | Yrd Mat Min Mat Min Turns Passed 3731 | 86 1237 269 1702 437 Spaces Moved 1758 | 47 453 158 776 324 Core 17 | 11 . . . 6 Treads . | . . . . . Legs 1449 | 36 453 158 776 26 Wheels 292 | . . . . 292 Hover . | . . . . . Flight . | . . . . . Fastest Speed 50 | 50 120 120 120 50 Average Speed 136 | 114 120 120 162 110 Slowest Speed 400 | 190 120 120 260 400 Overloaded Moves . | . . . . . Propulsion Burnouts . | . . . . . Robots Hopped . | . . . . . Cave-ins Triggered . | . . . . . Exploration Rate (%) 52 | 3 79 34 70 77 Regions Visited 4 Branch Regions 2 Pre-discovered Areas . | . . . . . Known Exits Taken 1 | . . . 1 . Unknown Exits Taken 3 | 1 1 1 . . Scrap Searched 3 | . . 1 . 2 Spaces Dug . | . . . . . Terrain Destroyed 2 | . . . 2 . Melee . | . . . . . Projectile 2 | . . . 2 . AOE . | . . . . . Terrain Rammed . | . . . . . Walls Destroyed . | . . . . . Machines Disabled . | . . . . . Actions | -11 -10 -10 -9 -9 --------- Run | Yrd Mat Min Mat Min Total 2767 | 62 1098 211 1026 370 Wait 712 | . 600 20 82 10 Move 1754 | 46 452 157 775 324 Hop . | . . . . . Pick Up 34 | 2 10 3 15 4 Fast Attach 17 | 6 . 1 8 2 Attach 12 | 1 3 1 6 1 Detach 4 | . 2 . 2 . Swap 30 | . 4 7 13 6 Drop 33 | . 2 8 20 3 Fire 171 | 7 25 14 105 20 Melee . | . . . . . Ram . | . . . . . Kick . | . . . . . Crush . | . . . . . Escape Stasis . | . . . . . Rewire . | . . . . . Trap . | . . . . . Miscellaneous . | . . . . . Route ------- -11/Scrapyard -10/Materials (discovered 3 exits: *Mat x2 / [*Min]) -10/Mines -9/Materials (discovered 2 exits: *Mat / *Min) -9/Mines History --------- Turn | Location | Event 33 | -11/Scrapyard | Discovered new exit (range 13) 87 | -11/Scrapyard | Entered Materials 301 | -10/Materials | Build established: Mutant 573 | -10/Materials | Repaired Signal Interpreter 990 | -10/Materials | Discovered new exit (range 10) 1169 | -10/Materials | Discovered new exit (range 16) 1287 | -10/Materials | Discovered new exit (range 13) 1324 | -10/Materials | Entered Mines 1546 | -10/Mines | Discovered new exit (range 12) 1554 | -10/Mines | Received a Rocket Launcher from a helpful Derelict 1593 | -10/Mines | Entered Materials 1593 | -9/Materials | Evolved 2 slots: Utility x2 1757 | -9/Materials | Repaired Sml. Storage Unit 2094 | -9/Materials | Discovered new exit (range 9) 2112 | -9/Materials | Identified exit to Mines 2612 | -9/Materials | Discovered new exit (range 16) 2807 | -9/Materials | Build established: Scavenger-Mutant 2954 | -9/Materials | Identified exit to Materials 3193 | -9/Materials | First assault squad dispatched 3264 | -9/Materials | Core integrity fell below 50% 3295 | -9/Materials | Entered Mines 3433 | -9/Mines | YI-UF0 nonchalantly dropped a Grenade Launcher on the ground 3484 | -9/Mines | Learned 2 Materials zone layouts 3501 | -9/Mines | Found a damaged Exp. Sensor Array with a note attached 3503 | -9/Mines | Found Prototype Device 3504 | -9/Mines | Identified Exp. Sensor Array 3584 | -9/Mines | Build established: Mutant 3628 | -9/Mines | Found a hidden stash of uninstalled traps 3700 | -9/Mines | Assembled infested the area 3705 | -9/Mines | Assisted by a Guerilla fighting off Assembled 3729 | -9/Mines | Core integrity fell below 20% 3732 | -9/Mines | Released all parts (3) 3732 | -9/Mines | Destroyed by as-34496 with Assembled Rifle Last Messages --------------- 03722_ as-41682 destroyed. 03722_ as-28327 destroyed. 03722_ as-41594 destroyed. 03724_ Bore Cannon destroyed. 03724_ as-67554 destroyed. 03724_ Rocket Launcher destroyed. 03726_ Imp. Heat Sink destroyed. 03726_ Wheel destroyed. 03727_ The unstable cave ceiling collapses. 03729_ System corrupted: Wheel fused. 03729_ Wheel destroyed. 03729_ as-75147 destroyed. 03730_ as-78868 destroyed. 03730_ as-87928 destroyed. 03731_ Ion Engine destroyed. 03731_ as-64572 destroyed. 03732_ Released Power Shielding. 03732_ Released Sml. Storage Unit. 03732_ Released Signal Interpreter. 03732_ K-01 Serf collects debris. Map ----- +----------------------------------------------------+ | | | | | | | | | ????????????????????????????????????????????????? | | ????????????????????????????????????????????????? | | ????????????????????????????????????????????????? | | ????????????????????????????????????????????????? | | ????????????????????????????????????????????????? | | ????????????????????????????????????????????????? | | ????????????????????????????????????????????????? | | ????????????????????????????????????????????????? | | ??????????????????????###???????????????????????? | | ?????????????????????? #??????????????????####? | | ?????????????????????? #?????????????????## # | | ??????????????????????#a #?????????????????# | | ??????????????????????# #?????????????????# | | ??????????????????????#a #?????????????????# | | ?????????????????????## ##????????????????## | | ????????????????????## a #?????????????????### | | ???????????????????## ????????????????????## | | ??????????????????## %##???????#????????##### | | ??????????????##### ##???? ##???????# | | ??????????????? a ### #???????# | | ?????????##??????## a #????????# ### | | ?????????? ??##### @ = k #????????# #?? | | ?????????## ## ]! % #???????# #?? | | ?????????# # ![ ##### #????# #?? | | ??????????# [ ##????????? ????# #?? | | ?????????## #??????# ????##### #?? | | ?????????# [ d d ##???????# # ## #?? | | ?????????# = ####????????# # #?? | | ?????????# #% #???????????## # #?? | | ?????????# ############????# ######?? | | ?????????### ## ! #????# #??????? | | ????####### %#### ! ]! ###### ######?? | | ????# %#?## #### # #?? | | ????# ! #??## ##?# "" ##?? | | ????# ## ## #???## #?# """ #??? | | ???????# ?### ##???## #?# = % #??? | | ???????#????## #????# #?#### % #??? | | ?????????????# #???## ##???# #### | | ???????# ##### #???# ##??# | | ???????# ##### #??# " "" | | ???????######## #??# #### | | ??????????????## #??############### | | ???????????????## #### #### ##?????????????# | | ????????????????####??# ##??###??????????????# ## | | ??????????????????##### ##??????????????????#%## | | ?????????????????## ###????????????????# ## | +----------------------------------------------------+ Best States ------------- Heat Dissipation 52 Energy Generation 14 Energy Capacity 265 Matter Stores 300 Matter Capacity 300 Sight Range 16 Robot Scan Range 14 Terrain Scan Density 10 Power Shielding 33 Evasion (%) 55 Item Schematics ----------------- None Robot Schematics ------------------ None Fabricated ------------ Nothing Alien Tech Used ----------------- None Achievements -------------- Significant Disruption Challenges ------------ None Game ------ Seed CatalystSalvageCycler Manual? 0 Play Time 00:37:33 Cumulative 12.4 hours Start 2024.06.02 @ 21:15:04 End 2024.06.02 @ 21:51:07 Sessions 1 Manual Loads 0 Difficulty Rogue Special Mode None Game No. 27 Rogue 27 Adventurer 0 Explorer 0 Win Type - Total 0 Types 0/0/0/0/0/0/0/0/0 Lore% 9 Gallery% 16 Achievement% 12 Wizard Run 0 Options --------- Layout 1 ASCII 0 Keyboard 0 Movement Mouse Keybinds 0 Fullscreen 2 Font 24/Terminus Map View 50x35 Zoom Use 0% Tactical HUD 1 Map Filters NONE Filters NONE Steam 1 RUN: 4b61a53c-aac1-4a6d-8a9e-6c5841e76b43